[Event "Early-Titled-Tuesday-Blitz-January-30-2024"]
[Site "Chess.com"]
[Date "2024.01.30"]
[Round "5"]
[White "Snegokhod"]
[Black "ValentinDragnev"]
[Result "1-0"]
[WhiteElo "2582"]
[BlackElo "2773"]
[TimeControl "180+1"]
[EndTime "8:57:53 PST"]
[Termination "Snegokhod won on time"]

1. b3 {[%clk 0:02:50.2]} 1... Nf6 {[%clk 0:02:57.7]} 2. g3 {[%clk 0:02:46.3]}
2... g6 {[%clk 0:02:58.6]} 3. Bb2 {[%clk 0:02:44.7]} 3... Bg7 {[%clk 0:02:58.8]}
4. Bg2 {[%clk 0:02:45.3]} 4... O-O {[%clk 0:02:58.3]} 5. e3 {[%clk 0:02:45]}
5... c5 {[%clk 0:02:56.6]} 6. Ne2 {[%clk 0:02:44.7]} 6... Nc6 {[%clk 0:02:54.6]}
7. O-O {[%clk 0:02:43.8]} 7... d5 {[%clk 0:02:54.3]} 8. d3 {[%clk 0:02:42.9]}
8... e5 {[%clk 0:02:46.8]} 9. Nd2 {[%clk 0:02:42.5]} 9... Be6 {[%clk 0:02:25.8]}
10. Nf3 {[%clk 0:02:41.9]} 10... Nd7 {[%clk 0:02:22.1]} 11. Nd2 {[%clk
0:02:35.8]} 11... f5 {[%clk 0:02:14.4]} 12. a3 {[%clk 0:02:33.6]} 12... Qe7
{[%clk 0:02:11.3]} 13. c4 {[%clk 0:02:32.6]} 13... d4 {[%clk 0:02:00.9]} 14.
exd4 {[%clk 0:02:32.5]} 14... cxd4 {[%clk 0:01:44.3]} 15. b4 {[%clk 0:02:30.3]}
15... Rae8 {[%clk 0:01:34.2]} 16. Re1 {[%clk 0:02:28.5]} 16... Qd6 {[%clk
0:01:14.7]} 17. c5 {[%clk 0:02:25.1]} 17... Qc7 {[%clk 0:01:14.2]} 18. Qc2
{[%clk 0:01:53.5]} 18... Nf6 {[%clk 0:01:13.1]} 19. Nc4 {[%clk 0:01:45.1]} 19...
Bxc4 {[%clk 0:01:08]} 20. Qxc4+ {[%clk 0:01:43.1]} 20... Kh8 {[%clk 0:01:08.7]}
21. b5 {[%clk 0:01:36.1]} 21... Na5 {[%clk 0:01:00.2]} 22. Qb4 {[%clk
0:01:35.9]} 22... b6 {[%clk 0:00:56.3]} 23. Rac1 {[%clk 0:01:26.8]} 23... Rc8
{[%clk 0:00:53.1]} 24. cxb6 {[%clk 0:00:59.7]} 24... Qxb6 {[%clk 0:00:54]} 25.
Nxd4 {[%clk 0:00:58.9]} 25... Rxc1 {[%clk 0:00:34.7]} 26. Rxc1 {[%clk
0:00:58.4]} 26... exd4 {[%clk 0:00:34]} 27. Bxd4 {[%clk 0:00:59.3]} 27... Qd8
{[%clk 0:00:33.1]} 28. Bxa7 {[%clk 0:00:56.8]} 28... Ng4 {[%clk 0:00:25.3]} 29.
h3 {[%clk 0:00:52.5]} 29... Ne5 {[%clk 0:00:24.9]} 30. Rd1 {[%clk 0:00:40.6]}
30... f4 {[%clk 0:00:24.9]} 31. gxf4 {[%clk 0:00:33]} 31... Nf7 {[%clk
0:00:13.1]} 32. Be3 {[%clk 0:00:26]} 32... Nd6 {[%clk 0:00:06.4]} 33. b6 {[%clk
0:00:24.9]} 33... Nab7 {[%clk 0:00:06.6]} 34. a4 {[%clk 0:00:24.5]} 34... Qd7
{[%clk 0:00:04.5]} 35. a5 {[%clk 0:00:23.6]} 35... Ra8 {[%clk 0:00:03.8]} 36.
Rc1 {[%clk 0:00:21.5]} 36... Rxa5 {[%clk 0:00:02.5]} 37. Rc7 {[%clk 0:00:20.5]}
37... Ra1+ {[%clk 0:00:02]} 38. Kh2 {[%clk 0:00:20.1]} 1-0

[Event "Early-Titled-Tuesday-Blitz-January-30-2024"]
[Site "Chess.com"]
[Date "2024.01.30"]
[Round "5"]
[White "wannabe2700"]
[Black "EsmeraldasAnderson03"]
[Result "1-0"]
[WhiteElo "2618"]
[BlackElo "2413"]
[TimeControl "180+1"]
[EndTime "8:57:54 PST"]
[Termination "wannabe2700 won by resignation"]

1. b3 {[%clk 0:03:00]} 1... d5 {[%clk 0:02:59.1]} 2. Bb2 {[%clk 0:03:00.7]} 2...
Bf5 {[%clk 0:02:59.8]} 3. Nf3 {[%clk 0:02:59.7]} 3... Nf6 {[%clk 0:03:00.3]} 4.
g3 {[%clk 0:02:59.7]} 4... e6 {[%clk 0:03:00.6]} 5. Bg2 {[%clk 0:03:00.3]} 5...
h6 {[%clk 0:03:01.1]} 6. O-O {[%clk 0:03:00.4]} 6... Be7 {[%clk 0:03:01.8]} 7.
d3 {[%clk 0:03:01.1]} 7... O-O {[%clk 0:03:02.5]} 8. Nbd2 {[%clk 0:03:01.8]}
8... Bh7 {[%clk 0:03:03.2]} 9. Re1 {[%clk 0:03:02.3]} 9... c5 {[%clk 0:03:03.7]}
10. e4 {[%clk 0:03:02.9]} 10... Nc6 {[%clk 0:03:04.4]} 11. e5 {[%clk 0:03:02.5]}
11... Nd7 {[%clk 0:03:04.5]} 12. h4 {[%clk 0:03:02.1]} 12... b5 {[%clk
0:03:04.9]} 13. Qe2 {[%clk 0:02:48.7]} 13... Nb4 {[%clk 0:02:52.2]} 14. Nf1
{[%clk 0:02:45.6]} 14... c4 {[%clk 0:02:50]} 15. Red1 {[%clk 0:02:23.2]} 15...
Rc8 {[%clk 0:02:43.3]} 16. Nd4 {[%clk 0:02:00.5]} 16... Qb6 {[%clk 0:02:23.8]}
17. dxc4 {[%clk 0:01:59.1]} 17... bxc4 {[%clk 0:02:20.7]} 18. a3 {[%clk
0:01:59.3]} 18... c3 {[%clk 0:02:10.4]} 19. Bc1 {[%clk 0:01:57.2]} 19... Nc6
{[%clk 0:02:02.2]} 20. Be3 {[%clk 0:01:56.4]} 20... Bc5 {[%clk 0:02:00.2]} 21.
Nxc6 {[%clk 0:01:43.5]} 21... Rxc6 {[%clk 0:01:59.2]} 22. b4 {[%clk 0:01:27.9]}
22... Bxe3 {[%clk 0:01:58.8]} 23. Nxe3 {[%clk 0:01:28.4]} 23... a5 {[%clk
0:01:48.8]} 24. Nxd5 {[%clk 0:00:40.1]} 24... exd5 {[%clk 0:01:45.5]} 25. Rxd5
{[%clk 0:00:41]} 25... Qc7 {[%clk 0:01:10.5]} 26. Rad1 {[%clk 0:00:35.2]} 26...
Nb6 {[%clk 0:01:04.7]} 27. Rxa5 {[%clk 0:00:33.5]} 27... Re6 {[%clk 0:00:57.9]}
28. f4 {[%clk 0:00:30.6]} 28... Qc4 {[%clk 0:00:51.1]} 29. Qf2 {[%clk
0:00:27.5]} 29... Qa2 {[%clk 0:00:38.4]} 30. f5 {[%clk 0:00:26.2]} 30... Nc4
{[%clk 0:00:21.7]} 31. Bd5 {[%clk 0:00:22.4]} 31... Rd8 {[%clk 0:00:07.4]} 32.
fxe6 {[%clk 0:00:20.7]} 32... Qxc2 {[%clk 0:00:05.7]} 33. Qxc2 {[%clk
0:00:18.4]} 33... Bxc2 {[%clk 0:00:05.4]} 34. e7 {[%clk 0:00:15.8]} 34... Re8
{[%clk 0:00:04]} 35. Rc1 {[%clk 0:00:15.6]} 35... Nxa5 {[%clk 0:00:03.8]} 36.
bxa5 {[%clk 0:00:15.5]} 36... Bd3 {[%clk 0:00:03]} 37. Rxc3 {[%clk 0:00:15.9]}
37... Rxe7 {[%clk 0:00:03.7]} 38. Rxd3 {[%clk 0:00:15.9]} 38... Rxe5 {[%clk
0:00:03.8]} 39. a6 {[%clk 0:00:16.1]} 39... g5 {[%clk 0:00:03.8]} 40. a7 {[%clk
0:00:16.1]} 40... Re1+ {[%clk 0:00:04.3]} 41. Kf2 {[%clk 0:00:15.9]} 41... Ra1
{[%clk 0:00:05.2]} 42. a8=Q+ {[%clk 0:00:15.7]} 1-0

[Event "Early-Titled-Tuesday-Blitz-January-30-2024"]
[Site "Chess.com"]
[Date "2024.01.30"]
[Round "5"]
[White "Matols"]
[Black "Grossboss19"]
[Result "0-1"]
[WhiteElo "2386"]
[BlackElo "2601"]
[TimeControl "180+1"]
[EndTime "8:57:55 PST"]
[Termination "Grossboss19 won by resignation"]

1. d4 {[%clk 0:03:00.9]} 1... Nf6 {[%clk 0:02:58.5]} 2. c4 {[%clk 0:03:01]} 2...
e6 {[%clk 0:02:58.2]} 3. g3 {[%clk 0:03:00]} 3... b6 {[%clk 0:02:57.8]} 4. Bg2
{[%clk 0:02:58.9]} 4... d5 {[%clk 0:02:56.6]} 5. cxd5 {[%clk 0:02:58.7]} 5...
exd5 {[%clk 0:02:55.7]} 6. Nc3 {[%clk 0:02:59.2]} 6... Bb7 {[%clk 0:02:55.7]} 7.
Nf3 {[%clk 0:02:55.2]} 7... Be7 {[%clk 0:02:55.3]} 8. Qa4+ {[%clk 0:02:54.2]}
8... c6 {[%clk 0:02:54.2]} 9. Ne5 {[%clk 0:02:52.9]} 9... O-O {[%clk 0:02:53.5]}
10. O-O {[%clk 0:02:50.8]} 10... Nfd7 {[%clk 0:02:52.4]} 11. Nd3 {[%clk
0:02:42.6]} 11... b5 {[%clk 0:02:50.8]} 12. Qc2 {[%clk 0:02:40.9]} 12... Nb6
{[%clk 0:02:48.1]} 13. e4 {[%clk 0:02:36.6]} 13... b4 {[%clk 0:02:45.6]} 14. Ne2
{[%clk 0:02:22.4]} 14... N8d7 {[%clk 0:02:37.5]} 15. e5 {[%clk 0:02:10.7]} 15...
Rc8 {[%clk 0:02:32.4]} 16. Be3 {[%clk 0:02:09.5]} 16... Nc4 {[%clk 0:02:31.5]}
17. Ndf4 {[%clk 0:01:52.5]} 17... Ndb6 {[%clk 0:02:25]} 18. b3 {[%clk
0:01:40.5]} 18... Nxe3 {[%clk 0:02:20.7]} 19. fxe3 {[%clk 0:01:41.4]} 19... c5
{[%clk 0:02:21.6]} 20. Qf5 {[%clk 0:01:34.2]} 20... g6 {[%clk 0:02:04.4]} 21.
Qg4 {[%clk 0:01:29.9]} 21... Rc7 {[%clk 0:02:02.3]} 22. Nh5 {[%clk 0:01:22.9]}
22... Bc8 {[%clk 0:01:56.9]} 23. Qf3 {[%clk 0:01:06.8]} 23... gxh5 {[%clk
0:01:51.6]} 24. Qxh5 {[%clk 0:01:07.7]} 24... Rc6 {[%clk 0:01:41.4]} 25. Nf4
{[%clk 0:01:04.7]} 25... Kg7 {[%clk 0:01:30.7]} 26. e4 {[%clk 0:01:01.7]} 26...
Rh6 {[%clk 0:01:26.1]} 27. Qd1 {[%clk 0:00:43.7]} 27... dxe4 {[%clk 0:01:24.3]}
28. d5 {[%clk 0:00:43.3]} 28... Bg5 {[%clk 0:01:06.4]} 29. Bxe4 {[%clk
0:00:41.4]} 29... Bxf4 {[%clk 0:01:04.1]} 30. Rxf4 {[%clk 0:00:39.3]} 30... Qe7
{[%clk 0:00:56.8]} 31. e6 {[%clk 0:00:17.6]} 31... fxe6 {[%clk 0:00:49.6]} 32.
d6 {[%clk 0:00:17.5]} 32... Qd8 {[%clk 0:00:38.8]} 33. Qg4+ {[%clk 0:00:15.8]}
33... Kh8 {[%clk 0:00:38.8]} 34. Rxf8+ {[%clk 0:00:14.4]} 34... Qxf8 {[%clk
0:00:39.7]} 35. Rd1 {[%clk 0:00:12]} 35... Bd7 {[%clk 0:00:36.8]} 36. Qg5 {[%clk
0:00:11.2]} 36... Qf6 {[%clk 0:00:35.9]} 37. Qg4 {[%clk 0:00:09.6]} 37... Qe5
{[%clk 0:00:31.7]} 38. Kg2 {[%clk 0:00:08.3]} 38... Rf6 {[%clk 0:00:29.7]} 39.
Rf1 {[%clk 0:00:07]} 39... Qb2+ {[%clk 0:00:27]} 40. Kh3 {[%clk 0:00:05.7]}
40... Rxf1 {[%clk 0:00:20]} 41. Qh5 {[%clk 0:00:05.6]} 41... Qg7 {[%clk
0:00:19.4]} 0-1

[Event "Early-Titled-Tuesday-Blitz-January-30-2024"]
[Site "Chess.com"]
[Date "2024.01.30"]
[Round "5"]
[White "Sina_Movahed"]
[Black "chito89"]
[Result "1-0"]
[WhiteElo "3043"]
[BlackElo "2901"]
[TimeControl "180+1"]
[EndTime "8:57:56 PST"]
[Termination "Sina_Movahed won by resignation"]

1. e4 {[%clk 0:02:53.1]} 1... Nc6 {[%clk 0:02:58]} 2. d4 {[%clk 0:02:49.7]} 2...
d6 {[%clk 0:02:57.2]} 3. Nf3 {[%clk 0:02:43.7]} 3... Nf6 {[%clk 0:02:55.6]} 4.
Bd3 {[%clk 0:02:40.7]} 4... g6 {[%clk 0:02:42.9]} 5. O-O {[%clk 0:02:32.6]} 5...
Bg7 {[%clk 0:02:42.8]} 6. c3 {[%clk 0:02:22.8]} 6... O-O {[%clk 0:02:40.9]} 7.
h3 {[%clk 0:02:15.4]} 7... e5 {[%clk 0:02:39.9]} 8. Re1 {[%clk 0:02:15.3]} 8...
h6 {[%clk 0:02:33.6]} 9. Nbd2 {[%clk 0:02:14.5]} 9... exd4 {[%clk 0:02:31.5]}
10. cxd4 {[%clk 0:02:14.3]} 10... Re8 {[%clk 0:02:26.8]} 11. a3 {[%clk
0:02:13.8]} 11... Nh5 {[%clk 0:02:15.9]} 12. Nb3 {[%clk 0:02:11]} 12... a5
{[%clk 0:02:11.3]} 13. Be3 {[%clk 0:02:09.7]} 13... Bd7 {[%clk 0:01:58.5]} 14.
Rc1 {[%clk 0:02:08.8]} 14... Nf6 {[%clk 0:01:53.9]} 15. Nbd2 {[%clk 0:02:01.5]}
15... a4 {[%clk 0:01:53.7]} 16. Rc3 {[%clk 0:01:48.8]} 16... Na5 {[%clk
0:01:53]} 17. Qc2 {[%clk 0:01:48.5]} 17... Re7 {[%clk 0:00:52.6]} 18. Rc1 {[%clk
0:01:35.2]} 18... Be8 {[%clk 0:00:52.9]} 19. Rxc7 {[%clk 0:01:30.2]} 19... Rxc7
{[%clk 0:00:49.2]} 20. Qxc7 {[%clk 0:01:29.8]} 20... Qxc7 {[%clk 0:00:49.8]} 21.
Rxc7 {[%clk 0:01:30.1]} 21... Bc6 {[%clk 0:00:50.5]} 22. d5 {[%clk 0:01:08.1]}
22... Ne8 {[%clk 0:00:50.3]} 23. dxc6 {[%clk 0:01:08.1]} 23... Nxc7 {[%clk
0:00:49.9]} 24. Bb6 {[%clk 0:01:08.6]} 24... Nxc6 {[%clk 0:00:26.9]} 25. Bxc7
{[%clk 0:01:08.4]} 25... Bxb2 {[%clk 0:00:27.5]} 26. Nc4 {[%clk 0:01:09]} 26...
Bc1 {[%clk 0:00:28]} 27. Nb6 {[%clk 0:00:52.5]} 27... Re8 {[%clk 0:00:21.9]} 28.
Nxa4 {[%clk 0:00:47]} 28... Bxa3 {[%clk 0:00:21.4]} 29. Nc3 {[%clk 0:00:47.5]}
29... Ne5 {[%clk 0:00:18.3]} 30. Nxe5 {[%clk 0:00:45.6]} 30... dxe5 {[%clk
0:00:16.8]} 31. Nd5 {[%clk 0:00:45.7]} 31... Kg7 {[%clk 0:00:17.2]} 32. Bb5
{[%clk 0:00:44.8]} 32... Re6 {[%clk 0:00:12.5]} 33. Bd7 {[%clk 0:00:42.6]} 33...
Ra6 {[%clk 0:00:13.2]} 34. Bxe5+ {[%clk 0:00:42.3]} 34... f6 {[%clk 0:00:13.8]}
35. Bd4 {[%clk 0:00:42.4]} 35... Bf8 {[%clk 0:00:13.1]} 36. g4 {[%clk
0:00:39.7]} 36... Kf7 {[%clk 0:00:12.6]} 37. Bb5 {[%clk 0:00:35.9]} 37... Ra5
{[%clk 0:00:13.1]} 38. Bc4 {[%clk 0:00:35.3]} 38... b5 {[%clk 0:00:13.6]} 39.
Be2 {[%clk 0:00:30.6]} 39... f5 {[%clk 0:00:11]} 40. gxf5 {[%clk 0:00:29.6]}
40... gxf5 {[%clk 0:00:11.9]} 41. exf5 {[%clk 0:00:30]} 41... b4 {[%clk
0:00:11.1]} 42. Bc4 {[%clk 0:00:29.4]} 42... Ke8 {[%clk 0:00:09.2]} 43. f6
{[%clk 0:00:28.7]} 43... Ra4 {[%clk 0:00:05.2]} 44. Bb5+ {[%clk 0:00:28.5]} 1-0

[Event "Early-Titled-Tuesday-Blitz-January-30-2024"]
[Site "Chess.com"]
[Date "2024.01.30"]
[Round "5"]
[White "GMT4114"]
[Black "SabinaFoisor"]
[Result "0-1"]
[WhiteElo "1936"]
[BlackElo "2387"]
[TimeControl "180+1"]
[EndTime "8:57:56 PST"]
[Termination "SabinaFoisor won on time"]

1. e4 {[%clk 0:03:00.9]} 1... c6 {[%clk 0:02:59.4]} 2. d4 {[%clk 0:03:00.2]}
2... d5 {[%clk 0:02:58.4]} 3. e5 {[%clk 0:03:00.8]} 3... Bf5 {[%clk 0:02:57.3]}
4. h4 {[%clk 0:03:01.4]} 4... h6 {[%clk 0:02:57.2]} 5. g4 {[%clk 0:03:00.9]}
5... Bh7 {[%clk 0:02:56.8]} 6. e6 {[%clk 0:03:01.3]} 6... fxe6 {[%clk
0:02:54.2]} 7. Bd3 {[%clk 0:03:01.9]} 7... Nf6 {[%clk 0:02:42.4]} 8. Bxh7 {[%clk
0:02:46.3]} 8... Rxh7 {[%clk 0:02:34]} 9. Qd3 {[%clk 0:02:46.7]} 9... c5 {[%clk
0:02:24.1]} 10. Qg6+ {[%clk 0:02:22.6]} 10... Kd7 {[%clk 0:02:23.8]} 11. Nf3
{[%clk 0:02:09.2]} 11... Nc6 {[%clk 0:02:23.6]} 12. Ne5+ {[%clk 0:01:53.4]}
12... Nxe5 {[%clk 0:02:23.4]} 13. dxe5 {[%clk 0:01:53.7]} 13... Qe8 {[%clk
0:02:23.2]} 14. Qd3 {[%clk 0:01:30.4]} 14... c4 {[%clk 0:02:17.5]} 15. Qd4
{[%clk 0:01:09.3]} 15... Qg6 {[%clk 0:01:58.5]} 16. exf6 {[%clk 0:01:02.4]}
16... Qxc2 {[%clk 0:01:55.5]} 17. O-O {[%clk 0:00:57.3]} 17... exf6 {[%clk
0:01:48.9]} 18. Na3 {[%clk 0:00:57.1]} 18... Bxa3 {[%clk 0:01:17]} 19. bxa3
{[%clk 0:00:58]} 19... h5 {[%clk 0:01:17.3]} 20. g5 {[%clk 0:00:53.8]} 20... Qf5
{[%clk 0:01:02.2]} 21. Be3 {[%clk 0:00:39.3]} 21... Qg4+ {[%clk 0:00:54.2]} 22.
Kh2 {[%clk 0:00:28.4]} 22... Qxd4 {[%clk 0:00:46.9]} 23. Bxd4 {[%clk 0:00:29.3]}
23... e5 {[%clk 0:00:47.5]} 24. Bc5 {[%clk 0:00:26.1]} 24... b6 {[%clk
0:00:42.7]} 25. Bb4 {[%clk 0:00:22.2]} 25... fxg5 {[%clk 0:00:37.9]} 26. hxg5
{[%clk 0:00:21.2]} 26... g6 {[%clk 0:00:38.6]} 27. Rfe1 {[%clk 0:00:20.3]} 27...
Re8 {[%clk 0:00:37.8]} 28. Rad1 {[%clk 0:00:20.3]} 28... Kc6 {[%clk 0:00:36.8]}
29. a4 {[%clk 0:00:17.8]} 29... Rf7 {[%clk 0:00:36.1]} 30. Kg2 {[%clk
0:00:17.3]} 30... Rf5 {[%clk 0:00:36.2]} 31. Bd2 {[%clk 0:00:16.3]} 31... d4
{[%clk 0:00:36.5]} 32. Rc1 {[%clk 0:00:15.7]} 32... Kd5 {[%clk 0:00:33.9]} 33.
Rc2 {[%clk 0:00:15.9]} 33... c3 {[%clk 0:00:30.5]} 34. Bc1 {[%clk 0:00:16.1]}
34... Kc4 {[%clk 0:00:28.6]} 35. Re4 {[%clk 0:00:13.5]} 35... Kd5 {[%clk
0:00:20.9]} 36. f3 {[%clk 0:00:12.4]} 36... Ref8 {[%clk 0:00:19.5]} 37. Rf2
{[%clk 0:00:08.4]} 37... d3 {[%clk 0:00:19.2]} 38. Ba3 {[%clk 0:00:06.6]} 38...
d2 {[%clk 0:00:18.1]} 39. Rf1 {[%clk 0:00:02.5]} 39... c2 {[%clk 0:00:17.9]} 0-1

[Event "Early-Titled-Tuesday-Blitz-January-30-2024"]
[Site "Chess.com"]
[Date "2024.01.30"]
[Round "5"]
[White "ukchessbomber"]
[Black "LiadCuba"]
[Result "1-0"]
[WhiteElo "2632"]
[BlackElo "2443"]
[TimeControl "180+1"]
[EndTime "8:57:59 PST"]
[Termination "ukchessbomber won by checkmate"]

1. h3 {[%clk 0:03:00.9]} 1... d5 {[%clk 0:02:56.5]} 2. Nf3 {[%clk 0:03:00.5]}
2... Nf6 {[%clk 0:02:49]} 3. b3 {[%clk 0:03:00.4]} 3... c5 {[%clk 0:02:45.3]} 4.
Bb2 {[%clk 0:03:00.8]} 4... e6 {[%clk 0:02:45.7]} 5. e3 {[%clk 0:03:01.7]} 5...
a6 {[%clk 0:02:43.5]} 6. d4 {[%clk 0:03:02.5]} 6... Nc6 {[%clk 0:02:43.3]} 7.
dxc5 {[%clk 0:03:02.7]} 7... Bxc5 {[%clk 0:02:43.5]} 8. Be2 {[%clk 0:03:03.6]}
8... O-O {[%clk 0:02:43.5]} 9. O-O {[%clk 0:03:04.5]} 9... Qe7 {[%clk
0:02:43.2]} 10. a3 {[%clk 0:03:05.4]} 10... b5 {[%clk 0:02:40.1]} 11. Nbd2
{[%clk 0:03:05]} 11... Bb7 {[%clk 0:02:39.6]} 12. c4 {[%clk 0:03:05.9]} 12...
dxc4 {[%clk 0:02:39.2]} 13. bxc4 {[%clk 0:03:06.8]} 13... b4 {[%clk 0:02:26.1]}
14. Nb3 {[%clk 0:03:04.7]} 14... Rfd8 {[%clk 0:02:25.5]} 15. Qc1 {[%clk
0:03:03.1]} 15... Ne4 {[%clk 0:02:16.4]} 16. Nxc5 {[%clk 0:03:02.4]} 16... Nxc5
{[%clk 0:02:17.3]} 17. axb4 {[%clk 0:03:00]} 17... Nd3 {[%clk 0:01:56.3]} 18.
Bxd3 {[%clk 0:02:45.4]} 18... Rxd3 {[%clk 0:01:57.2]} 19. b5 {[%clk 0:02:44.9]}
19... Nb4 {[%clk 0:01:39.4]} 20. Ne5 {[%clk 0:01:27.2]} 20... Rb3 {[%clk
0:00:40.1]} 21. Ra3 {[%clk 0:00:53.8]} 21... Qg5 {[%clk 0:00:20.6]} 22. e4
{[%clk 0:00:54.1]} 22... Qxc1 {[%clk 0:00:20.4]} 23. Bxc1 {[%clk 0:00:54.9]}
23... Rxa3 {[%clk 0:00:18.7]} 24. Bxa3 {[%clk 0:00:55]} 24... Nc2 {[%clk
0:00:19.1]} 25. Bd6 {[%clk 0:00:49.3]} 25... axb5 {[%clk 0:00:17.8]} 26. cxb5
{[%clk 0:00:50.2]} 26... Bxe4 {[%clk 0:00:18.3]} 27. b6 {[%clk 0:00:50]} 27...
f6 {[%clk 0:00:15.7]} 28. Nc4 {[%clk 0:00:34.2]} 28... Nd4 {[%clk 0:00:10.4]}
29. Rd1 {[%clk 0:00:28.6]} 29... Ne2+ {[%clk 0:00:08.6]} 30. Kf1 {[%clk
0:00:29]} 30... Nc3 {[%clk 0:00:08.7]} 31. Rc1 {[%clk 0:00:29.6]} 31... Bd3+
{[%clk 0:00:08.8]} 32. Ke1 {[%clk 0:00:30.3]} 32... Bxc4 {[%clk 0:00:09.1]} 33.
b7 {[%clk 0:00:30.9]} 33... Rd8 {[%clk 0:00:06.8]} 34. Rxc3 {[%clk 0:00:29.6]}
34... Bd5 {[%clk 0:00:05.6]} 35. b8=Q {[%clk 0:00:27.2]} 35... Rxb8 {[%clk
0:00:05.7]} 36. Bxb8 {[%clk 0:00:28.1]} 36... Kf7 {[%clk 0:00:06]} 37. g4 {[%clk
0:00:28.2]} 37... Kg6 {[%clk 0:00:06.9]} 38. f4 {[%clk 0:00:27.6]} 38... h5
{[%clk 0:00:07.3]} 39. Kf2 {[%clk 0:00:27.9]} 39... Be4 {[%clk 0:00:06.7]} 40.
Kg3 {[%clk 0:00:28]} 40... hxg4 {[%clk 0:00:06.9]} 41. hxg4 {[%clk 0:00:28.1]}
41... Bd5 {[%clk 0:00:07.8]} 42. Rc7 {[%clk 0:00:27.7]} 42... Ba2 {[%clk
0:00:06.4]} 43. Re7 {[%clk 0:00:28]} 43... Bb3 {[%clk 0:00:05.9]} 44. Bd6 {[%clk
0:00:28.6]} 44... Bc4 {[%clk 0:00:06]} 45. Rc7 {[%clk 0:00:29.1]} 45... Kh6
{[%clk 0:00:06.1]} 46. Bf8 {[%clk 0:00:29.5]} 46... Bd5 {[%clk 0:00:05.8]} 47.
Rxg7 {[%clk 0:00:29.1]} 47... e5 {[%clk 0:00:05.7]} 48. Rd7+ {[%clk 0:00:29]}
48... Kg6 {[%clk 0:00:06.1]} 49. f5+ {[%clk 0:00:29.5]} 49... Kg5 {[%clk
0:00:06.3]} 50. Rh7 {[%clk 0:00:28.5]} 50... Bf7 {[%clk 0:00:04.3]} 51. Bh6#
{[%clk 0:00:28.6]} 1-0

[Event "Early-Titled-Tuesday-Blitz-January-30-2024"]
[Site "Chess.com"]
[Date "2024.01.30"]
[Round "5"]
[White "szefru"]
[Black "GiorgianBarbosa"]
[Result "0-1"]
[WhiteElo "2269"]
[BlackElo "2485"]
[TimeControl "180+1"]
[EndTime "8:57:59 PST"]
[Termination "GiorgianBarbosa won by resignation"]

1. e4 {[%clk 0:02:59.9]} 1... c5 {[%clk 0:02:59.7]} 2. Nf3 {[%clk 0:02:58.3]}
2... g6 {[%clk 0:03:00.4]} 3. d4 {[%clk 0:02:53.8]} 3... cxd4 {[%clk 0:03:01.3]}
4. Nxd4 {[%clk 0:02:54.6]} 4... Bg7 {[%clk 0:03:01.6]} 5. c4 {[%clk 0:02:54.5]}
5... Nc6 {[%clk 0:03:02.5]} 6. Be3 {[%clk 0:02:53.4]} 6... Nf6 {[%clk 0:03:03]}
7. f3 {[%clk 0:02:51.7]} 7... O-O {[%clk 0:03:03.2]} 8. Be2 {[%clk 0:02:51]}
8... Nxd4 {[%clk 0:03:03.7]} 9. Bxd4 {[%clk 0:02:51]} 9... d6 {[%clk 0:03:04.6]}
10. O-O {[%clk 0:02:50.1]} 10... Bd7 {[%clk 0:03:05]} 11. Nc3 {[%clk 0:02:49.9]}
11... Bc6 {[%clk 0:03:05.5]} 12. Rb1 {[%clk 0:02:43.8]} 12... a5 {[%clk
0:03:01.7]} 13. b3 {[%clk 0:02:42.7]} 13... Nd7 {[%clk 0:03:01.9]} 14. Bxg7
{[%clk 0:02:32.6]} 14... Kxg7 {[%clk 0:03:02.8]} 15. f4 {[%clk 0:02:26.7]} 15...
Qb6+ {[%clk 0:02:59.6]} 16. Kh1 {[%clk 0:02:26.2]} 16... h5 {[%clk 0:02:47.3]}
17. Rf3 {[%clk 0:01:52.7]} 17... Nf6 {[%clk 0:02:33.4]} 18. Nd5 {[%clk
0:01:39.3]} 18... Bxd5 {[%clk 0:02:30.4]} 19. exd5 {[%clk 0:01:39.3]} 19... Ne4
{[%clk 0:02:14.7]} 20. Qe1 {[%clk 0:01:23.7]} 20... Nf6 {[%clk 0:01:46.6]} 21.
f5 {[%clk 0:01:20]} 21... g5 {[%clk 0:01:36.2]} 22. Rg3 {[%clk 0:01:13]} 22...
g4 {[%clk 0:01:33.5]} 23. Qd2 {[%clk 0:01:08.8]} 23... Ne4 {[%clk 0:01:11.6]}
24. Qe3 {[%clk 0:01:02.9]} 24... Nxg3+ {[%clk 0:01:07.2]} 25. Qxg3 {[%clk
0:01:03.8]} 25... Qd4 {[%clk 0:01:02.4]} 26. Qh4 {[%clk 0:00:50.1]} 26... Rh8
{[%clk 0:00:55.9]} 27. Qg5+ {[%clk 0:00:35.4]} 27... Kf8 {[%clk 0:00:53.6]} 28.
Rf1 {[%clk 0:00:19.7]} 28... Qf6 {[%clk 0:00:52.1]} 29. Qe3 {[%clk 0:00:19.7]}
29... a4 {[%clk 0:00:48.9]} 30. b4 {[%clk 0:00:18.9]} 30... Qe5 {[%clk
0:00:27.5]} 31. Qd3 {[%clk 0:00:18.9]} 31... b6 {[%clk 0:00:19.9]} 32. Bd1
{[%clk 0:00:17.7]} 32... a3 {[%clk 0:00:16.7]} 33. Bb3 {[%clk 0:00:17.4]} 33...
Rc8 {[%clk 0:00:14.5]} 34. c5 {[%clk 0:00:16.9]} 34... bxc5 {[%clk 0:00:13.7]}
35. Qa6 {[%clk 0:00:17.2]} 35... Re8 {[%clk 0:00:12.6]} 36. bxc5 {[%clk
0:00:17.3]} 36... dxc5 {[%clk 0:00:11.3]} 37. f6 {[%clk 0:00:17.7]} 37... exf6
{[%clk 0:00:08.3]} 38. Rxf6 {[%clk 0:00:17.8]} 38... Qxf6 {[%clk 0:00:06]} 39.
Qxf6 {[%clk 0:00:17.7]} 39... Re1+ {[%clk 0:00:05.3]} 0-1